fUSD/lending_fUSD_20250123
["ID","MTS","AMOUNT","RATE_DAILY","PERIOD"]
[350166236,1737665443168,-500.0,0.00017644,2]
[350166238,1737665443177,-500.0,0.00017644,2]
[350166240,1737665443186,-500.0,0.00017644,2]
[350166242,1737665443196,-500.0,0.00017644,2]
[350166244,1737665443205,-500.0,0.00017644,2]
[350166246,1737665443217,-500.0,0.00017644,2]
[350166247,1737665443226,-500.0,0.00017644,2]
[350166248,1737665443236,-500.0,0.00017644,2]
[350166249,1737665443245,-500.0,0.00017644,2]
[350166250,1737665443255,-500.0,0.00017644,2]
[350166251,1737665443264,-500.0,0.00017644,2]
[350166252,1737665443287,-500.0,0.00017644,2]
[350166254,1737665443296,-229.14697648,0.00017644,2]
[350166255,1737665443306,-500.0,0.00017644,2]
[350166256,1737665443315,-500.0,0.00017644,2]
[350166257,1737665443324,-500.0,0.00017644,2]
[350166258,1737665443334,-500.0,0.00017644,2]
[350166259,1737665443343,-254.53454176,0.00017644,2]
[350166260,1737665443352,-500.0,0.00017644,2]
[350166261,1737665443363,-500.0,0.00017644,2]
[350166262,1737665443372,-500.0,0.00017644,2]
[350166263,1737665443381,-326.2496541,0.00017644,2]
[350166264,1737665443390,-102430.03459202,0.00017644,2]
[350166265,1737665443405,-25452.45771507,0.00017644,2]
[350166266,1737665443415,-188.33454543,0.00017729,2]
[350166267,1737665443424,-569.343,0.00017803,2]
[350166268,1737665443434,-1870.293,0.00017803,2]
[350166269,1737665443444,-262.437,0.00017803,2]
[350166270,1737665443454,-3903.0,0.00017803,2]
[350166271,1737665443463,-1106.0,0.00017803,2]
[350166272,1737665443473,-177.675,0.00017805,2]
[350166273,1737665443483,-1000.0,0.00017813,2]
[350166274,1737665443493,-1286.608,0.00017846,2]
[350166275,1737665443503,-314.83798158,0.000179,2]
[350166276,1737665443513,-188.33454543,0.00017913,2]
[350166277,1737665443523,-500.0,0.00017916,2]
[350166278,1737665443532,-500.0,0.00017916,2]
[350166279,1737665443542,-500.0,0.00017916,2]
[350166280,1737665443551,-500.0,0.00017916,2]
[350166281,1737665443560,-500.0,0.00017916,2]
[350166282,1737665443569,-1002.98,0.00017916,2]
[350166283,1737665443578,-500.0,0.00017916,2]
[350166284,1737665443587,-734.62,0.00017916,2]
[350166285,1737665443596,-500.0,0.00017916,2]
[350166286,1737665443605,-595.57,0.00017916,2]
[350166287,1737665443615,-800.59,0.00017916,2]
[350166288,1737665443624,-171.6186473,0.00017916,2]
[350166289,1737665443634,-500.0,0.00017916,2]
[350166290,1737665443643,-500.0,0.00017916,2]
[350166291,1737665443652,-887.56,0.00017916,2]
[350166292,1737665443661,-500.0,0.00017916,2]
[350166293,1737665443670,-707.32,0.00017916,2]
[350166294,1737665443680,-500.0,0.00017916,2]
[350166295,1737665443689,-500.0,0.00017916,2]
[350166296,1737665443699,-500.0,0.00017916,2]
[350166297,1737665443709,-1504.08,0.00017916,2]
[350166298,1737665443718,-500.0,0.00017916,2]
[350166299,1737665443728,-779.98,0.00017916,2]
[350166300,1737665443737,-510.55,0.00017916,2]
[350166301,1737665443746,-500.0,0.00017916,2]
[350166302,1737665443755,-500.0,0.00017916,2]
[350166303,1737665443764,-667.37,0.00017916,2]
[350166305,1737665443782,-261.93643474,0.00017916,2]
[350166307,1737665443791,-500.0,0.00017916,2]
[350166309,1737665443800,-500.0,0.00017916,2]
[350166311,1737665443809,-500.0,0.00017916,2]
[350166313,1737665443818,-500.0,0.00017916,2]
[350166314,1737665443829,-835.38,0.00017916,2]
[350166317,1737665443839,-457.073203,0.00017917,2]
[350166320,1737665443848,-349.571756,0.00017917,2]
[350166322,1737665443858,-500.0,0.00017917,2]
[350166324,1737665443867,-215.50630724,0.00017917,2]
[350166327,1737665443877,-500.0,0.00017917,2]
[350166330,1737665443886,-428.42521825,0.00017917,2]
[350166333,1737665443895,-395.08235416,0.00017917,2]
[350166336,1737665443904,-551.48803146,0.00017917,2]
[350166338,1737665443913,-500.0,0.00017917,2]
[350166340,1737665443923,-500.0,0.00017917,2]
[350166342,1737665443932,-500.0,0.00017917,2]
[350166344,1737665443941,-500.0,0.00017917,2]
[350166346,1737665443950,-500.0,0.00017917,2]
[350166348,1737665443959,-152.63303509,0.00017917,2]
[350166350,1737665443968,-500.0,0.00017917,2]
[350166352,1737665443977,-500.0,0.00017917,2]
[350166354,1737665443987,-500.0,0.00017917,2]
[350166356,1737665443996,-500.0,0.00017917,2]
[350166358,1737665444006,-500.0,0.00017917,2]
[350166360,1737665444015,-225.64185392,0.00017917,2]
[350166362,1737665444032,-500.0,0.00017917,2]
[350166364,1737665444041,-159.60920541,0.00017917,2]
[350166366,1737665444051,-521.94,0.00017917,2]
[350166368,1737665444061,-500.0,0.00017917,2]
[350166370,1737665444070,-588.94,0.00017917,2]
[350166372,1737665444080,-500.0,0.00017917,2]
[350166374,1737665444089,-643.19289912,0.00017917,2]
[350166376,1737665444099,-500.0,0.00017917,2]
[350166378,1737665444108,-500.0,0.00017917,2]
[350166380,1737665444117,-500.0,0.00017917,2]
[350166382,1737665444127,-500.0,0.00017917,2]
[350166384,1737665444136,-500.0,0.00017917,2]
[350166386,1737665444145,-767.71,0.00017917,2]
[350166388,1737665444155,-500.0,0.00017917,2]
[350166390,1737665444164,-500.0,0.00017917,2]
[350166392,1737665444173,-500.0,0.00017917,2]
[350166394,1737665444183,-697.97,0.00017917,2]
[350166396,1737665444192,-707.14,0.00017917,2]
[350166398,1737665444201,-648.12,0.00017917,2]
[350166400,1737665444212,-500.0,0.00017917,2]
[350166402,1737665444222,-806.32,0.00017917,2]
[350166404,1737665444233,-500.0,0.00017917,2]
[350166406,1737665444242,-500.0,0.00017917,2]
[350166408,1737665444252,-500.0,0.00017917,2]
[350166410,1737665444262,-500.0,0.00017917,2]
[350166412,1737665444279,-1196.48,0.00017917,2]
[350166414,1737665444289,-1049.03,0.00017917,2]
[350166416,1737665444301,-500.0,0.00017917,2]
[350166418,1737665444310,-500.0,0.00017917,2]
[350166420,1737665444319,-1025.68,0.00017917,2]
[350166422,1737665444329,-500.0,0.00017917,2]
[350166424,1737665444338,-657.53,0.00017917,2]
[350166426,1737665444347,-658.72,0.00017917,2]
[350166428,1737665444356,-500.0,0.00017917,2]
[350166430,1737665444366,-500.0,0.00017917,2]
[350166432,1737665444375,-602.40393923,0.00017917,2]
[350166434,1737665444384,-759.2,0.00017917,2]
[350166436,1737665444393,-634.71,0.00017917,2]
[350166438,1737665444403,-1556.63,0.00017917,2]
[350166440,1737665444412,-500.0,0.00017917,2]
[350166442,1737665444422,-793.97,0.00017917,2]
[350166444,1737665444432,-500.0,0.00017917,2]
[350166446,1737665444441,-500.0,0.00017917,2]
[350166448,1737665444451,-500.0,0.00017917,2]
[350166450,1737665444459,-504.85,0.00017917,2]
[350166452,1737665444469,-500.0,0.00017917,2]
[350166454,1737665444478,-500.0,0.00017917,2]
[350166456,1737665444487,-979.32,0.00017917,2]
[350166458,1737665444496,-500.0,0.00017917,2]
[350166460,1737665444506,-500.0,0.00017917,2]
[350166462,1737665444515,-500.0,0.00017917,2]
[350166464,1737665444531,-500.0,0.00017917,2]
[350166466,1737665444542,-500.0,0.00017917,2]
[350166467,1737665444552,-500.0,0.00017917,2]
[350166469,1737665444561,-500.0,0.00017917,2]
[350166471,1737665444570,-500.0,0.00017917,2]
[350166473,1737665444579,-500.0,0.00017917,2]
[350166475,1737665444589,-500.0,0.00017917,2]
[350166477,1737665444598,-500.0,0.00017917,2]
[350166479,1737665444607,-622.82,0.00017917,2]
[350166481,1737665444616,-344.77366851,0.00017917,2]
[350166483,1737665444630,-1380.57633149,0.00017917,2]
[350166485,1737665444639,-500.0,0.00017917,2]
[350166487,1737665444648,-194.93545862,0.00017917,2]
[350166489,1737665444657,-610.16,0.00017917,2]
[350166491,1737665444666,-511.23856321,0.00017917,2]
[350166493,1737665444675,-500.0,0.00017917,2]
[350166495,1737665444684,-500.0,0.00017917,2]
[350166497,1737665444693,-500.0,0.00017917,2]
[350166499,1737665444702,-500.0,0.00017917,2]
[350166501,1737665444711,-500.0,0.00017917,2]
[350166503,1737665444720,-604.88964668,0.00017917,2]
[350166528,1737665444955,-127.05035332,0.00017917,2]
[350166530,1737665444964,-161.77323747,0.00017917,2]
[350166533,1737665444975,-338.22676253,0.00017917,2]
[350166535,1737665444984,-500.0,0.00017917,2]
[350166537,1737665444994,-500.0,0.00017917,2]
[350166538,1737665445003,-500.0,0.00017917,2]
[350166539,1737665445012,-758.87,0.00017917,2]
[350166540,1737665445030,-500.0,0.00017917,2]
[350166541,1737665445040,-500.0,0.00017917,2]
[350166542,1737665445050,-632.38,0.00017917,2]
[350166543,1737665445059,-1359.52,0.00017917,2]
[350166544,1737665445069,-500.0,0.00017917,2]
[350166545,1737665445078,-224.97547907,0.00017917,2]
[350166546,1737665445089,-275.02452093,0.00017917,2]
[350166548,1737665445099,-500.0,0.00017917,2]
[350166550,1737665445108,-500.0,0.00017917,2]
[350166551,1737665445117,-921.92,0.00017917,2]
[350166553,1737665445127,-500.0,0.00017917,2]
[350166555,1737665445136,-500.0,0.00017917,2]
[350166557,1737665445145,-586.7,0.00017917,2]
[350166559,1737665445155,-500.0,0.00017918,2]
[350166561,1737665445165,-500.0,0.00017918,2]
[350166563,1737665445175,-500.0,0.00017918,2]
[350166565,1737665445184,-500.0,0.00017918,2]
[350166567,1737665445193,-500.0,0.00017918,2]
[350166569,1737665445202,-500.0,0.00017918,2]
[350166571,1737665445217,-500.0,0.00017918,2]
[350166573,1737665445227,-500.0,0.00017918,2]
[350166575,1737665445236,-500.0,0.00017918,2]
[350166577,1737665445246,-500.0,0.00017918,2]
[350166579,1737665445256,-500.0,0.00017918,2]
[350166581,1737665445265,-500.0,0.00017918,2]
[350166583,1737665445289,-500.0,0.00017918,2]
[350166585,1737665445299,-500.0,0.00017918,2]
[350166587,1737665445311,-500.0,0.00017918,2]
[350166589,1737665445321,-500.0,0.00017918,2]
[350166591,1737665445331,-500.0,0.00017918,2]
[350166593,1737665445341,-500.0,0.00017918,2]
[350166595,1737665445351,-500.0,0.00017918,2]
[350166597,1737665445360,-500.0,0.00017918,2]
[350166599,1737665445370,-500.0,0.00017918,2]
[350166601,1737665445380,-190.71955433,0.00017918,2]
[350166603,1737665445390,-4905.11311689,0.00018,2]
[350166605,1737665445399,-314.83798149,0.00018038,2]
[350166607,1737665445409,-1652.01,0.00018082,2]
[350166609,1737665445419,-188.33454543,0.00018097,2]
[350166625,1737665445576,-314.83798149,0.00018176,2]
[350166627,1737665445586,-500.0,0.0001819,2]
[350166629,1737665445596,-500.0,0.0001819,2]
[350166631,1737665445606,-500.0,0.0001819,2]
[350166633,1737665445616,-500.0,0.0001819,2]
[350166635,1737665445625,-500.0,0.0001819,2]
[350166637,1737665445635,-1002.98,0.0001819,2]
[350166639,1737665445644,-500.0,0.0001819,2]
[350166641,1737665445654,-734.62,0.0001819,2]
[350166643,1737665445663,-500.0,0.0001819,2]
[350166645,1737665445673,-595.57,0.0001819,2]
[350166647,1737665445683,-800.59,0.0001819,2]
[350166649,1737665445692,-500.0,0.0001819,2]
[350166651,1737665445701,-500.0,0.0001819,2]
[350166653,1737665445711,-887.56,0.0001819,2]
[350166655,1737665445722,-500.0,0.0001819,2]
[350166657,1737665445732,-707.32,0.0001819,2]
[350166659,1737665445741,-500.0,0.0001819,2]
[350166661,1737665445751,-198.16719088,0.0001819,2]
[350166663,1737665445760,-500.0,0.0001819,2]
[350166664,1737665445779,-1504.08,0.0001819,2]
[350166666,1737665445789,-500.0,0.0001819,2]
[350166668,1737665445799,-779.98,0.0001819,2]
[350166670,1737665445808,-510.55,0.0001819,2]
[350166672,1737665445817,-500.0,0.0001819,2]
[350166674,1737665445827,-667.37,0.0001819,2]
[350166676,1737665445836,-500.0,0.0001819,2]
[350166678,1737665445846,-500.0,0.0001819,2]
[350166680,1737665445855,-500.0,0.0001819,2]
[350166682,1737665445865,-500.0,0.0001819,2]
[350166684,1737665445874,-835.38,0.0001819,2]
[350166686,1737665445883,-349.571756,0.00018191,2]
[350166688,1737665445893,-500.0,0.00018191,2]
[350166690,1737665445902,-500.0,0.00018191,2]
[350166692,1737665445912,-500.0,0.00018191,2]
[350166694,1737665445921,-500.0,0.00018191,2]
[350166696,1737665445930,-500.0,0.00018191,2]
[350166698,1737665445939,-500.0,0.00018191,2]
[350166700,1737665445948,-500.0,0.00018191,2]
[350166702,1737665445957,-391.98314411,0.00018191,2]
[350166704,1737665445966,-500.0,0.00018191,2]
[350166706,1737665445976,-500.0,0.00018191,2]
[350166708,1737665445985,-588.94,0.00018191,2]
[350166710,1737665445995,-500.0,0.00018191,2]
[350166712,1737665446004,-195.59462575,0.00018191,2]
[350166714,1737665446013,-500.0,0.00018191,2]
[350166716,1737665446034,-500.0,0.00018191,2]
[350166718,1737665446043,-767.71,0.00018191,2]
[350166720,1737665446052,-500.0,0.00018191,2]
[350166722,1737665446061,-500.0,0.00018191,2]
[350166724,1737665446071,-500.0,0.00018191,2]
[350166726,1737665446080,-697.97,0.00018191,2]
[350166728,1737665446090,-707.14,0.00018191,2]
[350166730,1737665446099,-648.12,0.00018191,2]
[350166732,1737665446108,-500.0,0.00018191,2]
[350166734,1737665446117,-806.32,0.00018191,2]
[350166736,1737665446127,-500.0,0.00018191,2]
[350166738,1737665446137,-500.0,0.00018191,2]
[350166740,1737665446146,-500.0,0.00018191,2]
[350166742,1737665446155,-500.0,0.00018191,2]
[350166744,1737665446164,-1196.48,0.00018191,2]
[350166746,1737665446173,-1049.03,0.00018191,2]
[350166748,1737665446182,-1025.68,0.00018191,2]
[350166750,1737665446191,-500.0,0.00018191,2]
[350166753,1737665446201,-657.53,0.00018191,2]
[350166755,1737665446211,-658.72,0.00018191,2]
[350166757,1737665446220,-500.0,0.00018191,2]
[350166759,1737665446232,-500.0,0.00018191,2]
[350166761,1737665446241,-759.2,0.00018191,2]
[350166763,1737665446250,-1556.63,0.00018191,2]
[350166765,1737665446259,-793.97,0.00018191,2]
[350166767,1737665446269,-500.0,0.00018191,2]
[350166770,1737665446278,-500.0,0.00018191,2]
[350166773,1737665446288,-504.85,0.00018191,2]
[350166775,1737665446297,-500.0,0.00018191,2]
[350166778,1737665446306,-506.0,0.00018191,2]
[350166781,1737665446317,-979.32,0.00018191,2]
[350166784,1737665446326,-500.0,0.00018191,2]
[350166786,1737665446337,-500.0,0.00018191,2]
[350166788,1737665446346,-385.54012913,0.00018191,2]
[350166790,1737665446355,-500.0,0.00018191,2]
[350166792,1737665446363,-500.0,0.00018191,2]
[350166794,1737665446373,-500.0,0.00018191,2]
[350166797,1737665446382,-500.0,0.00018191,2]
[350166800,1737665446391,-500.0,0.00018191,2]
[350166802,1737665446400,-500.0,0.00018191,2]
[350166805,1737665446410,-500.0,0.00018191,2]
[350166808,1737665446419,-500.0,0.00018191,2]
[350166811,1737665446428,-622.82,0.00018191,2]
[350166813,1737665446438,-1725.35,0.00018191,2]
[350166816,1737665446447,-500.0,0.00018191,2]
[350166819,1737665446456,-610.16,0.00018191,2]
[350166822,1737665446465,-500.0,0.00018191,2]
[350166824,1737665446475,-500.0,0.00018191,2]
[350166826,1737665446484,-500.0,0.00018191,2]
[350166828,1737665446494,-731.94,0.00018191,2]
[350166831,1737665446503,-500.0,0.00018191,2]
[350166832,1737665446512,-758.87,0.00018191,2]
[350166834,1737665446528,-500.0,0.00018191,2]
[350166836,1737665446538,-1359.52,0.00018191,2]
[350166839,1737665446548,-500.0,0.00018191,2]
[350166841,1737665446562,-921.92,0.00018191,2]
[350166843,1737665446572,-500.0,0.00018191,2]
[350166844,1737665446581,-586.7,0.00018191,2]
[350166846,1737665446591,-500.0,0.00018192,2]
[350166848,1737665446600,-500.0,0.00018192,2]
[350166851,1737665446610,-500.0,0.00018192,2]
[350166852,1737665446619,-481.56281218,0.00018192,2]
[350166854,1737665446629,-500.0,0.00018192,2]
[350166856,1737665446639,-500.0,0.00018192,2]
[350166858,1737665446648,-500.0,0.00018192,2]
[350166861,1737665446657,-188.33454543,0.00018281,2]
[350166862,1737665446667,-200.0,0.0001831,2]
[350166864,1737665446676,-314.83798149,0.00018314,2]
[350166866,1737665446686,-500.0,0.00018342,2]
[350166868,1737665446695,-1001.2601,0.00018368,2]
[350166871,1737665446706,-150.0,0.00018433,2]
[350166873,1737665446715,-437.86,0.00018433,2]
[350166875,1737665446724,-150.0,0.00018433,2]
[350166877,1737665446734,-150.0,0.00018433,2]
[350166878,1737665446743,-314.83798149,0.00018452,2]
[350166880,1737665446752,-500.0,0.00018464,2]
[350166882,1737665446762,-500.0,0.00018464,2]
[350166884,1737665446778,-500.0,0.00018464,2]
[350166887,1737665446789,-500.0,0.00018464,2]
[350166889,1737665446798,-1002.98,0.00018464,2]
[350166891,1737665446807,-500.0,0.00018464,2]
[350166893,1737665446816,-734.62,0.00018464,2]
[350166895,1737665446825,-500.0,0.00018464,2]
[350166897,1737665446835,-595.57,0.00018464,2]
[350166899,1737665446845,-800.59,0.00018464,2]
[350166901,1737665446854,-500.0,0.00018464,2]
[350166903,1737665446863,-500.0,0.00018464,2]
[350166905,1737665446872,-887.56,0.00018464,2]
[350166907,1737665446882,-500.0,0.00018464,2]
[350166909,1737665446893,-707.32,0.00018464,2]
[350166910,1737665446903,-500.0,0.00018464,2]
[350166912,1737665446912,-500.0,0.00018464,2]
[350166914,1737665446922,-1504.08,0.00018464,2]
[350166916,1737665446931,-500.0,0.00018464,2]
[350166918,1737665446940,-779.98,0.00018464,2]
[350166920,1737665446949,-510.55,0.00018464,2]
[350166922,1737665446959,-500.0,0.00018464,2]
[350166924,1737665446969,-667.37,0.00018464,2]
[350166926,1737665446978,-500.0,0.00018464,2]
[350166928,1737665446989,-500.0,0.00018464,2]
[350166930,1737665446998,-500.0,0.00018464,2]
[350166932,1737665447007,-500.0,0.00018464,2]
[350166934,1737665447017,-835.38,0.00018464,2]
[350166936,1737665447029,-188.33454543,0.00018464,2]
[350166938,1737665447038,-349.571756,0.00018465,2]
[350166940,1737665447048,-500.0,0.00018465,2]
[350166942,1737665447057,-194.62417316,0.00018465,2]
[350166944,1737665447066,-301.85007814,0.00018465,2]
[350166946,1737665447075,-500.0,0.00018465,2]
[350166948,1737665447085,-500.0,0.00018465,2]
[350166950,1737665447094,-500.0,0.00018465,2]
[350166952,1737665447103,-500.0,0.00018465,2]
[350166954,1737665447112,-588.94,0.00018465,2]
[350166956,1737665447120,-500.0,0.00018465,2]
[350166958,1737665447129,-500.0,0.00018465,2]
[350166960,1737665447138,-500.0,0.00018465,2]
[350166962,1737665447147,-767.71,0.00018465,2]
[350166964,1737665447156,-500.0,0.00018465,2]
[350166966,1737665447166,-500.0,0.00018465,2]
[350166968,1737665447175,-500.0,0.00018465,2]
[350166970,1737665447184,-697.97,0.00018465,2]
[350166972,1737665447194,-648.12,0.00018465,2]
[350166974,1737665447203,-707.14,0.00018465,2]
[350166976,1737665447215,-500.0,0.00018465,2]
[350166978,1737665447225,-806.32,0.00018465,2]
[350166980,1737665447234,-500.0,0.00018465,2]
[350166982,1737665447243,-500.0,0.00018465,2]
[350166984,1737665447255,-500.0,0.00018465,2]
[350166986,1737665447264,-500.0,0.00018465,2]
[350166988,1737665447277,-1196.48,0.00018465,2]
[350166990,1737665447288,-1049.03,0.00018465,2]
[350166992,1737665447297,-1025.68,0.00018465,2]
[350166994,1737665447306,-500.0,0.00018465,2]
[350166996,1737665447315,-657.53,0.00018465,2]
[350166998,1737665447325,-658.72,0.00018465,2]
[350167000,1737665447334,-500.0,0.00018465,2]
[350167001,1737665447343,-759.2,0.00018465,2]
[350167004,1737665447352,-1556.63,0.00018465,2]
[350167005,1737665447362,-793.97,0.00018465,2]
[350167006,1737665447371,-500.0,0.00018465,2]
[350167007,1737665447380,-500.0,0.00018465,2]
[350167008,1737665447389,-504.85,0.00018465,2]
[350167009,1737665447399,-500.0,0.00018465,2]
[350167010,1737665447408,-979.32,0.00018465,2]
[350167011,1737665447417,-500.0,0.00018465,2]
[350167012,1737665447426,-500.0,0.00018465,2]
[350167013,1737665447435,-500.0,0.00018465,2]
[350167014,1737665447444,-500.0,0.00018465,2]
[350167016,1737665447453,-500.0,0.00018465,2]
[350167018,1737665447462,-500.0,0.00018465,2]
[350167020,1737665447471,-500.0,0.00018465,2]
[350167022,1737665447480,-500.0,0.00018465,2]
[350167024,1737665447490,-500.0,0.00018465,2]
[350167026,1737665447499,-500.0,0.00018465,2]
[350167028,1737665447508,-622.82,0.00018465,2]
[350167030,1737665447518,-1725.35,0.00018465,2]
[350167032,1737665447530,-500.0,0.00018465,2]
[350167034,1737665447540,-610.16,0.00018465,2]
[350167036,1737665447549,-500.0,0.00018465,2]
[350167038,1737665447558,-500.0,0.00018465,2]
[350167040,1737665447568,-500.0,0.00018465,2]
[350167042,1737665447579,-731.94,0.00018465,2]
[350167043,1737665447589,-500.0,0.00018465,2]
[350167045,1737665447599,-758.87,0.00018465,2]
[350167047,1737665447608,-500.0,0.00018465,2]
[350167049,1737665447618,-1359.52,0.00018465,2]
[350167051,1737665447628,-500.0,0.00018465,2]
[350167053,1737665447638,-921.92,0.00018465,2]
[350167055,1737665447648,-586.7,0.00018465,2]
[350167057,1737665447658,-160.96275203,0.00018466,2]
[350167059,1737665447667,-529.87865019,0.00018466,2]
[350167061,1737665447676,-500.0,0.00018466,2]
[350167064,1737665447685,-500.0,0.00018466,2]
[350167066,1737665447694,-500.0,0.00018466,2]
[350167067,1737665447704,-500.0,0.00018466,2]
[350167069,1737665447714,-1000.0,0.00018485,2]
[350167071,1737665447723,-299.99,0.00018533,4]
[350167073,1737665447732,-999.99,0.00018533,2]
[350167075,1737665447741,-1005.45,0.00018533,2]
[350167077,1737665447751,-150.99,0.00018533,2]
[350167079,1737665447760,-1000.0,0.00018553,2]
[350167081,1737665447771,-314.83798149,0.0001859,2]
[350167083,1737665447782,-188.33454543,0.00018648,2]
[350167085,1737665447791,-68.35755111,0.0001865,2]
[350167106,1737665447979,-154.94244889,0.0001865,2]
[350167108,1737665447989,-1000.0,0.00018725,2]
[350167110,1737665447998,-314.83798149,0.00018728,2]
[350167112,1737665448007,-500.0,0.00018738,2]
[350167114,1737665448016,-500.0,0.00018738,2]
[350167116,1737665448029,-320.48508868,0.00018738,2]
[350167118,1737665448039,-500.0,0.00018738,2]
[350167120,1737665448047,-1002.98,0.00018738,2]
[350167122,1737665448056,-500.0,0.00018738,2]
[350167124,1737665448066,-734.62,0.00018738,2]
[350167126,1737665448075,-500.0,0.00018738,2]
[350167128,1737665448085,-595.57,0.00018738,2]
[350167130,1737665448094,-800.59,0.00018738,2]
[350167132,1737665448105,-500.0,0.00018738,2]
[350167134,1737665448114,-500.0,0.00018738,2]
[350167136,1737665448124,-887.56,0.00018738,2]
[350167138,1737665448134,-500.0,0.00018738,2]
[350167140,1737665448143,-707.32,0.00018738,2]
[350167142,1737665448154,-500.0,0.00018738,2]
[350167144,1737665448164,-500.0,0.00018738,2]
[350167146,1737665448173,-1504.08,0.00018738,2]
[350167148,1737665448183,-779.98,0.00018738,2]
[350167150,1737665448193,-510.55,0.00018738,2]
[350167152,1737665448203,-500.0,0.00018738,2]
[350167154,1737665448214,-667.37,0.00018738,2]
[350167156,1737665448226,-350.81140614,0.00018738,2]
[350167159,1737665448236,-500.0,0.00018738,2]
[350167161,1737665448246,-500.0,0.00018738,2]
[350167163,1737665448257,-500.0,0.00018738,2]
[350167165,1737665448267,-495.93922866,0.00018738,2]
[350167167,1737665448284,-339.44077134,0.00018738,2]
[350167169,1737665448294,-349.571756,0.00018739,2]
[350167171,1737665448310,-500.0,0.00018739,2]
[350167173,1737665448321,-500.0,0.00018739,2]
[350167175,1737665448331,-500.0,0.00018739,2]
[350167177,1737665448341,-500.0,0.00018739,2]
[350167179,1737665448351,-588.94,0.00018739,2]
[350167181,1737665448360,-500.0,0.00018739,2]
[350167183,1737665448371,-500.0,0.00018739,2]
[350167185,1737665448380,-500.0,0.00018739,2]
[350167187,1737665448389,-767.71,0.00018739,2]
[350167189,1737665448399,-500.0,0.00018739,2]
[350167191,1737665448409,-500.0,0.00018739,2]
[350167193,1737665448419,-648.12,0.00018739,2]
[350167195,1737665448429,-707.14,0.00018739,2]
[350167198,1737665448439,-500.0,0.00018739,2]
[350167200,1737665448449,-806.32,0.00018739,2]
[350167202,1737665448459,-500.0,0.00018739,2]
[350167204,1737665448467,-500.0,0.00018739,2]
[350167206,1737665448477,-500.0,0.00018739,2]
[350167208,1737665448487,-500.0,0.00018739,2]
[350167210,1737665448497,-472.42236,0.00018739,2]
[350167212,1737665448509,-724.05764,0.00018739,2]
[350167214,1737665448523,-1049.03,0.00018739,2]
[350167216,1737665448533,-1025.68,0.00018739,2]
[350167218,1737665448543,-500.0,0.00018739,2]
[350167220,1737665448555,-657.53,0.00018739,2]
[350167222,1737665448565,-658.72,0.00018739,2]
[350167224,1737665448574,-500.0,0.00018739,2]
[350167226,1737665448584,-759.2,0.00018739,2]
[350167228,1737665448595,-1556.63,0.00018739,2]
[350167230,1737665448605,-793.97,0.00018739,2]
[350167232,1737665448615,-500.0,0.00018739,2]
[350167234,1737665448625,-500.0,0.00018739,2]